fUSD/lending_fUSD_20240801
["ID","MTS","AMOUNT","RATE_DAILY","PERIOD"]
[333804087,1722521282040,-500.0,0.00043835,60]
[333804088,1722521282089,-500.0,0.00043835,60]
[333804089,1722521282139,-500.0,0.00043835,60]
[333804090,1722521282184,-500.0,0.00043835,60]
[333804091,1722521282238,-500.0,0.00043835,60]
[333804092,1722521282310,-500.0,0.00043835,60]
[333804093,1722521282381,-500.0,0.00043835,60]
[333804094,1722521282433,-500.0,0.00043835,60]
[333804095,1722521282481,-500.0,0.00043835,60]
[333804096,1722521282527,-500.0,0.00043835,60]
[333804097,1722521282573,-513.28648153,0.00043835,60]
[333804098,1722521282618,-500.0,0.00043835,60]
[333804099,1722521282664,-500.0,0.00043835,60]
[333804100,1722521282709,-513.98808521,0.00043835,60]
[333804101,1722521282759,-500.0,0.00043835,60]
[333804102,1722521282810,-506.58400206,0.00043835,60]
[333804103,1722521282855,-500.0,0.00043835,60]
[333804104,1722521282902,-500.0,0.00043835,60]
[333804105,1722521282950,-500.0,0.00043835,60]
[333804106,1722521282999,-500.0,0.00043835,60]
[333804107,1722521283049,-512.65396772,0.00043835,60]
[333804108,1722521283100,-500.0,0.00043835,60]
[333804109,1722521283147,-501.0,0.00043835,60]
[333804110,1722521283192,-500.0,0.00043835,60]
[333804111,1722521283239,-225.63388069,0.00043835,60]
[333804112,1722521283286,-511.28128984,0.00043835,60]
[333804113,1722521283336,-642.56730924,0.00043835,60]
[333804114,1722521283385,-500.0,0.00043835,60]
[333804115,1722521283439,-511.01135469,0.00043835,60]
[333804116,1722521283492,-500.0,0.00043835,60]
[333804117,1722521283545,-500.0,0.00043835,60]
[333804118,1722521283604,-500.0,0.00043835,60]
[333804119,1722521283654,-429.2435724,0.00043835,60]
[333804120,1722521283702,-545.51731866,0.00043835,60]
[333804121,1722521283751,-500.0,0.00043835,60]
[333804122,1722521283808,-500.0,0.00043835,60]
[333804123,1722521283856,-500.0,0.00043835,60]
[333804124,1722521283905,-545.80246894,0.00043835,60]
[333804125,1722521283955,-512.81761002,0.00043835,60]
[333804126,1722521284004,-519.57110336,0.00043835,60]
[333804127,1722521284057,-512.60977196,0.00043835,60]
[333804128,1722521284109,-505.64759577,0.00043835,60]
[333804129,1722521284158,-505.55196652,0.00043835,60]
[333804130,1722521284209,-510.711478,0.00043835,60]
[333804131,1722521284259,-500.0,0.00043835,60]
[333804132,1722521284309,-506.97511285,0.00043835,60]
[333804133,1722521284356,-509.64826132,0.00043835,60]
[333804134,1722521284403,-511.71094005,0.00043835,60]
[333804135,1722521284450,-524.85695351,0.00043835,60]
[333804136,1722521284497,-500.0,0.00043835,60]
[333804137,1722521284543,-500.0,0.00043835,60]
[333804138,1722521284590,-500.0,0.00043835,60]
[333804139,1722521284635,-512.74430903,0.00043835,60]
[333804140,1722521284679,-500.0,0.00043835,60]
[333804141,1722521284990,-544.00226499,0.00043835,60]
[333804142,1722521285037,-500.0,0.00043835,60]
[333804143,1722521285087,-500.0,0.00043835,60]
[333804144,1722521285132,-500.0,0.00043835,60]
[333804145,1722521285175,-500.0,0.00043835,60]
[333804146,1722521285219,-500.0,0.00043835,60]
[333804147,1722521285264,-500.0,0.00043835,60]
[333804148,1722521285311,-500.0,0.00043835,60]
[333804149,1722521285354,-535.35,0.00043835,60]
[333804150,1722521285398,-500.0,0.00043835,60]
[333804151,1722521285441,-500.0,0.00043835,60]
[333804152,1722521285485,-500.0,0.00043835,60]
[333804153,1722521285528,-500.0,0.00043835,60]
[333804154,1722521285571,-500.0,0.00043835,60]
[333804155,1722521285616,-500.0,0.00043835,60]
[333804156,1722521285660,-500.0,0.00043835,60]
[333804157,1722521285701,-500.0,0.00043835,60]
[333804158,1722521285744,-506.35093434,0.00043835,60]
[333804159,1722521285786,-500.0,0.00043835,60]
[333804160,1722521285830,-500.0,0.00043835,60]
[333804161,1722521285875,-500.0,0.00043835,60]
[333804162,1722521285920,-500.0,0.00043835,60]
[333804163,1722521285966,-500.0,0.00043835,60]
[333804164,1722521286012,-500.0,0.00043835,60]
[333804165,1722521286060,-465.02798659,0.00043835,60]
[333804166,1722521286105,-500.0,0.00043835,60]
[333804167,1722521286154,-507.46192157,0.00043835,60]
[333804168,1722521286200,-508.40546057,0.00043835,60]
[333804169,1722521286247,-500.0,0.00043835,60]
[333804170,1722521286299,-500.0,0.00043835,60]
[333804171,1722521286361,-500.0,0.00043835,60]
[333804172,1722521286413,-500.0,0.00043835,60]
[333804173,1722521286466,-508.93292866,0.00043835,60]
[333804174,1722521286514,-505.8805806,0.00043835,60]
[333804175,1722521286563,-500.0,0.00043835,60]
[333804176,1722521286609,-500.0,0.00043835,60]
[333804177,1722521286654,-500.0,0.00043835,60]
[333804178,1722521286697,-500.0,0.00043835,60]
[333804179,1722521286742,-500.0,0.00043835,60]
[333804180,1722521286786,-500.0,0.00043835,60]
[333804181,1722521286828,-506.45199929,0.00043835,60]
[333804182,1722521286871,-500.0,0.00043835,60]
[333804183,1722521286913,-511.14932231,0.00043835,60]
[333804184,1722521286954,-500.0,0.00043835,60]
[333804185,1722521286997,-500.0,0.00043835,60]
[333804186,1722521287043,-522.97247254,0.00043835,60]
[333804187,1722521287088,-519.06606168,0.00043835,60]
[333804188,1722521287131,-500.0,0.00043835,60]
[333804189,1722521287176,-500.0,0.00043835,60]
[333804190,1722521287221,-500.0,0.00043835,60]
[333804191,1722521287266,-500.0,0.00043835,60]
[333804192,1722521287310,-500.0,0.00043835,60]
[333804193,1722521287353,-518.68,0.00043835,60]
[333804194,1722521287397,-500.0,0.00043835,60]
[333804195,1722521287440,-514.97427654,0.00043835,60]
[333804196,1722521287484,-500.0,0.00043835,60]
[333804197,1722521287527,-519.93304169,0.00043835,60]
[333804198,1722521287570,-590.22732783,0.00043835,60]
[333804199,1722521287613,-506.82760563,0.00043835,60]
[333804200,1722521287655,-468.28586864,0.00043835,60]
[333804201,1722521287696,-551.44,0.00043835,60]
[333804202,1722521287737,-500.0,0.00043835,60]
[333804203,1722521287779,-508.04135579,0.00043835,60]
[333804204,1722521287820,-251.48902114,0.00043835,60]
[333804205,1722521287861,-507.42901936,0.00043835,60]
[333804206,1722521287905,-500.0,0.00043835,60]
[333804207,1722521287947,-510.13521122,0.00043835,60]
[333804208,1722521287988,-515.88476969,0.00043835,60]
[333804209,1722521288030,-500.0,0.00043835,60]
[333804210,1722521288071,-500.0,0.00043835,60]
[333804211,1722521288112,-506.97903379,0.00043835,60]
[333804212,1722521288152,-500.0,0.00043835,60]
[333804213,1722521288195,-500.0,0.00043835,60]
[333804214,1722521288239,-508.56359134,0.00043835,60]
[333804215,1722521288282,-507.49673536,0.00043835,60]
[333804216,1722521288325,-511.69977439,0.00043835,60]
[333804217,1722521288369,-500.0,0.00043835,60]
[333804218,1722521288416,-500.0,0.00043835,60]
[333804219,1722521288461,-550.37578486,0.00043835,60]
[333804220,1722521288507,-500.0,0.00043835,60]
[333804221,1722521288552,-511.48505184,0.00043835,60]
[333804222,1722521288599,-500.0,0.00043835,60]
[333804223,1722521288645,-639.88554991,0.00043835,60]
[333804224,1722521288692,-500.0,0.00043835,60]
[333804225,1722521288738,-515.59557737,0.00043835,60]
[333804226,1722521288784,-500.0,0.00043835,60]
[333804227,1722521288829,-582.99845178,0.00043835,60]
[333804228,1722521288875,-500.0,0.00043835,60]
[333804229,1722521288921,-500.0,0.00043835,60]
[333804230,1722521288972,-577.81657289,0.00043835,60]
[333804231,1722521289020,-512.7399393,0.00043835,60]
[333804232,1722521289069,-510.63173502,0.00043835,60]
[333804233,1722521289120,-516.05116177,0.00043835,60]
[333804234,1722521289173,-500.0,0.00043835,60]
[333804235,1722521289219,-508.88114125,0.00043835,60]
[333804236,1722521289267,-573.94,0.00043835,60]
[333804237,1722521289315,-519.39986295,0.00043835,60]
[333804238,1722521289362,-512.58868414,0.00043835,60]
[333804239,1722521289406,-504.03600885,0.00043835,60]
[333804240,1722521289451,-500.0,0.00043835,60]
[333804241,1722521289495,-504.70867773,0.00043835,60]
[333804242,1722521289539,-500.0,0.00043835,60]
[333804243,1722521289586,-506.22328268,0.00043835,60]
[333804244,1722521289631,-500.0,0.00043835,60]
[333804245,1722521289936,-506.41430713,0.00043835,60]
[333804246,1722521289979,-516.98840034,0.00043835,60]
[333804247,1722521290020,-563.78420597,0.00043835,60]
[333804248,1722521290063,-508.07512992,0.00043835,60]
[333804249,1722521290107,-514.72621159,0.00043835,60]
[333804250,1722521290150,-500.0,0.00043835,60]
[333804251,1722521290193,-500.0,0.00043835,60]
[333804252,1722521290236,-508.05962073,0.00043835,60]
[333804253,1722521290280,-472.73848707,0.00043835,60]
[333804254,1722521290325,-500.0,0.00043835,60]
[333804255,1722521290369,-253.10369182,0.00043835,60]
[333804256,1722521290412,-516.77164851,0.00043835,60]
[333804257,1722521290457,-570.24466375,0.00043835,60]
[333804258,1722521290501,-505.51463592,0.00043835,60]
[333804259,1722521290545,-505.07669216,0.00043835,60]
[333804260,1722521290596,-514.22767422,0.00043835,60]
[333804261,1722521290642,-509.35505785,0.00043835,60]
[333804262,1722521290686,-505.87990587,0.00043835,60]
[333804263,1722521290732,-500.0,0.00043835,60]
[333804264,1722521290777,-500.0,0.00043835,60]
[333804265,1722521290822,-511.19999214,0.00043835,60]
[333804266,1722521290863,-524.25824473,0.00043835,60]
[333804267,1722521290907,-506.47726592,0.00043835,60]
[333804268,1722521290951,-500.0,0.00043835,60]
[333804269,1722521290997,-509.68310166,0.00043835,60]
[333804270,1722521291043,-500.0,0.00043835,60]
[333804271,1722521291090,-552.97373663,0.00043835,60]
[333804272,1722521291136,-510.25290728,0.00043835,60]
[333804273,1722521291181,-512.63903702,0.00043835,60]
[333804274,1722521291224,-518.46428687,0.00043835,60]
[333804275,1722521291268,-500.0,0.00043835,60]
[333804276,1722521291313,-292.906086,0.00043835,60]
[333804277,1722521291367,-506.75580635,0.00043835,60]
[333804278,1722521291410,-500.0,0.00043835,60]
[333804279,1722521291454,-525.30160844,0.00043835,60]
[333804280,1722521291497,-500.0,0.00043835,60]
[333804281,1722521291539,-509.1315072,0.00043835,60]
[333804282,1722521291584,-500.0,0.00043835,60]
[333804283,1722521291629,-520.98234713,0.00043835,60]
[333804284,1722521291673,-500.0,0.00043835,60]
[333804285,1722521291715,-508.91262247,0.00043835,60]
[333804286,1722521291765,-535.58802179,0.00043835,60]
[333804287,1722521291813,-500.0,0.00043835,60]
[333804288,1722521291858,-500.0,0.00043835,60]
[333804289,1722521291900,-500.0,0.00043835,60]
[333804290,1722521291942,-500.0,0.00043835,60]
[333804291,1722521291985,-500.0,0.00043835,60]
[333804292,1722521292025,-514.6893726,0.00043835,60]
[333804293,1722521292066,-500.0,0.00043835,60]
[333804294,1722521292105,-566.21449218,0.00043835,60]
[333804295,1722521292144,-500.0,0.00043835,60]
[333804296,1722521292185,-500.0,0.00043835,60]
[333804297,1722521292226,-500.0,0.00043835,60]
[333804298,1722521292269,-500.0,0.00043835,60]
[333804299,1722521292314,-500.0,0.00043835,60]
[333804300,1722521292356,-500.0,0.00043835,60]
[333804301,1722521292398,-500.0,0.00043835,60]
[333804302,1722521292440,-641.67786556,0.00043835,60]
[333804303,1722521292483,-500.0,0.00043835,60]
[333804304,1722521292525,-508.12174435,0.00043835,60]
[333804305,1722521292569,-536.60532195,0.00043835,60]
[333804306,1722521292616,-522.56533265,0.00043835,60]
[333804307,1722521292660,-533.08567873,0.00043835,60]
[333804308,1722521292706,-507.33356448,0.00043835,60]
[333804309,1722521292750,-540.05351322,0.00043835,60]
[333804310,1722521292796,-500.0,0.00043835,60]
[333804311,1722521292844,-528.89205331,0.00043835,60]
[333804312,1722521292888,-500.0,0.00043835,60]
[333804313,1722521292930,-508.55371028,0.00043835,60]
[333804314,1722521292971,-509.31226449,0.00043835,60]
[333804315,1722521293013,-500.0,0.00043835,60]
[333804316,1722521293062,-440.84649604,0.00043835,60]
[333804317,1722521293110,-992.96,0.00043835,60]
[333804318,1722521293156,-167.58934471,0.00043835,60]
[333804319,1722521293203,-643.15,0.00043835,60]
[333804320,1722521293247,-500.0,0.00043835,60]
[333804321,1722521293291,-500.0,0.00043835,60]
[333804322,1722521293340,-311.9537965,0.00043835,60]
[333804323,1722521293387,-645.82985514,0.00043835,60]
[333804324,1722521293436,-500.0,0.00043835,60]
[333804325,1722521293482,-268.01444964,0.00043835,60]
[333804326,1722521293528,-482.99915459,0.00043835,60]
[333804327,1722521293574,-500.0,0.00043835,60]
[333804328,1722521293621,-269.03585796,0.00043835,60]
[333804329,1722521293667,-340.49763434,0.00043835,60]
[333804330,1722521293709,-517.46072831,0.00043835,60]
[333804331,1722521293754,-358.25622889,0.00043835,60]
[333804332,1722521293796,-373.8598515,0.00043835,60]
[333804333,1722521293845,-512.19065863,0.00043835,60]
[333804334,1722521293887,-554.76724818,0.00043835,60]
[333804335,1722521293931,-500.0,0.00043835,60]
[333804336,1722521293980,-500.0,0.00043835,60]
[333804337,1722521294024,-500.0,0.00043835,60]
[333804338,1722521294067,-500.0,0.00043835,60]
[333804339,1722521294110,-500.0,0.00043835,60]
[333804340,1722521294156,-500.0,0.00043835,60]
[333804341,1722521294200,-166.77752623,0.00043835,60]
[333804342,1722521294245,-509.1276066,0.00043835,60]
[333804343,1722521294290,-573.31858834,0.00043835,60]
[333804344,1722521294336,-525.22158063,0.00043835,60]
[333804345,1722521294381,-512.91203262,0.00043835,60]
[333804346,1722521294425,-523.20810754,0.00043835,60]
[333804347,1722521294472,-507.19097969,0.00043835,60]
[333804348,1722521294785,-500.0,0.00043835,60]
[333804349,1722521294827,-195.92979361,0.00043835,60]
[333804350,1722521294871,-426.7165852,0.00043835,60]
[333804351,1722521294912,-1340.38244213,0.00043835,60]
[333804352,1722521294951,-502.95553972,0.00043835,60]
[333804353,1722521294989,-500.0,0.00043835,60]
[333804354,1722521295029,-250.04104152,0.00043835,60]
[333804355,1722521295072,-500.0,0.00043835,60]
[333804356,1722521295115,-199.96180077,0.00043835,60]
[333804357,1722521295158,-545.09372681,0.00043835,60]
[333804358,1722521295200,-190.20469783,0.00043835,60]
[333804359,1722521295245,-500.0,0.00043835,60]
[333804360,1722521295290,-417.13510929,0.00043835,60]
[333804361,1722521295333,-500.0,0.00043835,60]
[333804362,1722521295378,-500.0,0.00043835,60]
[333804363,1722521295423,-316.39879912,0.00043835,60]
[333804364,1722521295465,-454.25913152,0.00043835,60]
[333804365,1722521295509,-154.92195056,0.00043835,60]
[333804366,1722521295551,-500.0,0.00043835,60]
[333804367,1722521295596,-520.34025802,0.00043835,60]
[333804368,1722521295641,-214.00266578,0.00043835,60]
[333804369,1722521295683,-475.52958804,0.00043835,60]
[333804370,1722521295731,-387.85193762,0.00043835,60]
[333804371,1722521295776,-401.48270823,0.00043835,60]
[333804372,1722521295823,-500.0,0.00043835,60]
[333804373,1722521295869,-500.0,0.00043835,60]
[333804374,1722521295918,-500.0,0.00043835,60]
[333804375,1722521295965,-501.85351363,0.00043835,60]
[333804376,1722521296010,-246.92215705,0.00043835,60]
[333804377,1722521296056,-192.71700328,0.00043835,60]
[333804378,1722521296104,-500.0,0.00043835,60]
[333804379,1722521296148,-265.3761306,0.00043835,60]
[333804380,1722521296195,-161.04806238,0.00043835,60]
[333804381,1722521296238,-500.0,0.00043835,60]
[333804382,1722521296283,-396.18288939,0.00043835,60]
[333804383,1722521296328,-494.89359198,0.00043835,60]
[333804384,1722521296370,-500.0,0.00043835,60]
[333804385,1722521296414,-503.77798042,0.00043835,60]
[333804386,1722521296458,-503.57909181,0.00043835,60]
[333804387,1722521296502,-519.35917331,0.00043835,60]
[333804388,1722521296548,-458.82525393,0.00043835,60]
[333804389,1722521296594,-281.43745929,0.00043835,60]
[333804390,1722521296642,-500.0,0.00043835,60]
[333804391,1722521296686,-500.0,0.00043835,60]
[333804392,1722521296732,-362.12909103,0.00043835,60]
[333804393,1722521296777,-500.0,0.00043835,60]
[333804394,1722521296821,-524.18563604,0.00043835,60]
[333804395,1722521296865,-506.41490679,0.00043835,60]
[333804396,1722521296908,-168.90750679,0.00043835,60]
[333804397,1722521296951,-209.87918793,0.00043835,60]
[333804398,1722521296996,-500.0,0.00043835,60]
[333804399,1722521297041,-271.77762012,0.00043835,60]
[333804400,1722521297083,-500.0,0.00043835,60]
[333804401,1722521297126,-268.42489468,0.00043835,60]
[333804402,1722521297168,-500.0,0.00043835,60]
[333804403,1722521297212,-500.0,0.00043835,60]
[333804404,1722521297255,-166.74681867,0.00043835,60]
[333804405,1722521297301,-500.0,0.00043835,60]
[333804406,1722521297347,-500.0,0.00043835,60]
[333804407,1722521297390,-500.0,0.00043835,60]
[333804408,1722521297435,-500.0,0.00043835,60]
[333804409,1722521297478,-500.0,0.00043835,60]
[333804410,1722521297523,-500.0,0.00043835,60]
[333804411,1722521297567,-500.0,0.00043835,60]
[333804412,1722521297614,-500.0,0.00043835,60]
[333804413,1722521297658,-255.94146036,0.00043835,60]
[333804414,1722521297699,-500.0,0.00043835,60]
[333804415,1722521297741,-500.0,0.00043835,60]
[333804416,1722521297786,-500.0,0.00043835,60]
[333804417,1722521297827,-500.0,0.00043835,60]
[333804418,1722521297868,-538.78448247,0.00043835,60]
[333804419,1722521297911,-500.0,0.00043835,60]
[333804420,1722521297952,-500.0,0.00043835,60]
[333804421,1722521297992,-500.0,0.00043835,60]
[333804422,1722521298030,-500.0,0.00043835,60]
[333804423,1722521298071,-500.0,0.00043835,60]
[333804424,1722521298113,-500.0,0.00043835,60]
[333804425,1722521298154,-500.0,0.00043835,60]
[333804426,1722521298199,-500.0,0.00043835,60]
[333804427,1722521298242,-500.0,0.00043835,60]
[333804428,1722521298288,-500.0,0.00043835,60]
[333804429,1722521298331,-298.40838355,0.00043835,60]
[333804430,1722521298373,-419.63917526,0.00043835,60]
[333804431,1722521298417,-500.0,0.00043835,60]
[333804432,1722521298461,-478.85529244,0.00043835,60]
[333804433,1722521298505,-296.13226726,0.00043835,60]
[333804434,1722521298551,-500.0,0.00043835,60]
[333804435,1722521298600,-500.0,0.00043835,60]
[333804436,1722521298647,-500.0,0.00043835,60]
[333804437,1722521298693,-500.0,0.00043835,60]
[333804438,1722521298738,-500.0,0.00043835,60]
[333804439,1722521298784,-500.0,0.00043835,60]
[333804440,1722521298828,-500.0,0.00043835,60]
[333804441,1722521298873,-465.45211872,0.00043835,60]
[333804442,1722521298918,-1864.88,0.00043835,60]
[333804443,1722521298965,-289.81038929,0.00043835,60]
[333804444,1722521299021,-500.0,0.00043835,60]
[333804445,1722521299071,-500.0,0.00043835,60]
[333804446,1722521299116,-520.35245855,0.00043835,60]
[333804447,1722521299160,-500.0,0.00043835,60]
[333804448,1722521299206,-273.92860276,0.00043835,60]
[333804449,1722521299251,-500.0,0.00043835,60]
[333804450,1722521299294,-500.0,0.00043835,60]
[333804451,1722521299339,-500.0,0.00043835,60]
[333804452,1722521299388,-500.0,0.00043835,60]
[333804453,1722521299434,-500.0,0.00043835,60]
[333804454,1722521299481,-2336.32,0.00043835,60]
[333804455,1722521299529,-2017.2,0.00043835,60]
[333804456,1722521299588,-2017.2,0.00043835,60]
[333804457,1722521299658,-2017.2,0.00043835,60]
[333804458,1722521299730,-2017.2,0.00043835,60]
[333804459,1722521299797,-2017.2,0.00043835,60]
[333804460,1722521299865,-2017.2,0.00043835,60]
[333804461,1722521299926,-2017.2,0.00043835,60]
[333804462,1722521299992,-2017.2,0.00043835,60]
[333804463,1722521300054,-2017.2,0.00043835,60]
[333804464,1722521300120,-2017.2,0.00043835,60]
[333804465,1722521300185,-2017.2,0.00043835,60]
[333804466,1722521300247,-2017.2,0.00043835,60]
[333804467,1722521300309,-2017.2,0.00043835,60]
[333804468,1722521300373,-2017.2,0.00043835,60]
[333804469,1722521300436,-2017.2,0.00043835,60]
[333804470,1722521300500,-2017.2,0.00043835,60]
[333804471,1722521300565,-2017.2,0.00043835,60]
[333804472,1722521300629,-2017.2,0.00043835,60]
[333804473,1722521300692,-2017.2,0.00043835,60]
[333804474,1722521300754,-2017.2,0.00043835,60]
[333804475,1722521300817,-2017.2,0.00043835,60]
[333804476,1722521300878,-2017.2,0.00043835,60]
[333804477,1722521300938,-2017.2,0.00043835,60]
[333804478,1722521301000,-2017.41632536,0.00043835,60]
[333804479,1722521301059,-500.0,0.00043835,60]
[333804480,1722521301121,-500.0,0.00043835,60]
[333804481,1722521301181,-500.0,0.00043835,60]
[333804482,1722521301241,-500.0,0.00043835,60]
[333804483,1722521301300,-500.0,0.00043835,60]
[333804484,1722521301361,-500.0,0.00043835,60]
[333804485,1722521301438,-500.0,0.00043835,60]
[333804486,1722521301502,-500.0,0.00043835,60]
[333804487,1722521301562,-500.0,0.00043835,60]
[333804488,1722521301627,-500.0,0.00043835,60]
[333804489,1722521301689,-500.0,0.00043835,60]
[333804490,1722521301749,-500.0,0.00043835,60]
[333804491,1722521301810,-500.0,0.00043835,60]
[333804492,1722521301869,-500.0,0.00043835,60]
[333804493,1722521301924,-390.18809014,0.00043835,60]
[333804494,1722521301980,-500.0,0.00043835,60]
[333804495,1722521302034,-180.25,0.00043835,60]
[333804496,1722521302088,-500.0,0.00043835,60]
[333804497,1722521302141,-508.39,0.00043835,60]
[333804498,1722521302197,-641.2,0.00043835,60]
[333804499,1722521302252,-500.0,0.00043835,60]
[333804500,1722521302306,-517.66539177,0.00043835,60]
[333804501,1722521302364,-500.0,0.00043835,60]
[333804502,1722521302420,-500.0,0.00043835,60]
[333804503,1722521302477,-505.48293878,0.00043835,60]
[333804504,1722521302534,-500.0,0.00043835,60]
[333804505,1722521302589,-500.0,0.00043835,60]
[333804506,1722521302644,-500.0,0.00043835,60]
[333804507,1722521302700,-514.37864434,0.00043835,60]
[333804508,1722521302753,-310.83778445,0.00043835,60]
[333804509,1722521302811,-500.0,0.00043835,60]
[333804510,1722521302869,-500.0,0.00043835,60]
[333804511,1722521302925,-500.0,0.00043835,60]
[333804512,1722521302982,-500.0,0.00043835,60]
[333804513,1722521303038,-500.0,0.00043835,60]
[333804514,1722521303093,-500.0,0.00043835,60]
[333804515,1722521303147,-2644.77,0.00043835,60]
[333804516,1722521303204,-500.0,0.00043835,60]
[333804517,1722521303258,-5888.49,0.00043835,60]
[333804518,1722521303316,-514.64,0.00043835,60]
[333804519,1722521303373,-500.0,0.00043835,60]
[333804520,1722521303431,-16075.72,0.00043835,60]
[333804521,1722521303492,-500.0,0.00043835,60]
[333804522,1722521303549,-500.0,0.00043835,60]
[333804523,1722521303612,-500.0,0.00043835,60]
[333804524,1722521303668,-500.0,0.00043835,60]
[333804525,1722521303723,-500.0,0.00043835,60]
[333804526,1722521303783,-638.72,0.00043835,60]
[333804527,1722521303839,-500.0,0.00043835,60]
[333804528,1722521303892,-500.0,0.00043835,60]
[333804529,1722521303948,-500.0,0.00043835,60]
[333804530,1722521304001,-10096.89,0.00043835,60]
[333804531,1722521304056,-29565.58,0.00043835,60]
[333804532,1722521304115,-500.0,0.00043835,60]
[333804533,1722521304173,-784.5,0.00043835,60]
[333804534,1722521304234,-1920.72,0.00043835,60]
[333804535,1722521304293,-1090.69,0.00043835,60]
[333804536,1722521304351,-500.0,0.00043835,60]
[333804537,1722521304410,-775.33,0.00043835,60]
[333804538,1722521304469,-10807.18,0.00043835,60]
[333804539,1722521304529,-500.0,0.00043835,60]
[333804540,1722521304584,-500.0,0.00043835,60]
[333804541,1722521304642,-500.0,0.00043835,60]
[333804542,1722521304694,-500.0,0.00043835,60]
[333804543,1722521304748,-660.53,0.00043835,60]
[333804544,1722521305687,-500.0,0.00043835,60]
[333804545,1722521305768,-500.0,0.00043835,60]
[333804546,1722521305813,-500.0,0.00043835,60]
[333804547,1722521305863,-1188.39,0.00043835,60]
[333804548,1722521305908,-1024.45,0.00043835,60]
[333804549,1722521305955,-500.0,0.00043835,60]
[333804550,1722521306002,-1544.37,0.00043835,60]
[333804551,1722521306050,-1598.02,0.00043835,60]
[333804552,1722521306103,-7009.61,0.00043835,60]
[333804553,1722521306153,-7009.61,0.00043835,60]
[333804554,1722521306203,-7009.61,0.00043835,60]
[333804555,1722521306250,-7009.61,0.00043835,60]
[333804556,1722521306296,-7009.61,0.00043835,60]
[333804557,1722521306343,-7009.61,0.00043835,60]
[333804558,1722521306389,-7009.61,0.00043835,60]
[333804559,1722521306439,-7009.61,0.00043835,60]
[333804560,1722521306487,-7009.61,0.00043835,60]
[333804561,1722521306535,-7009.61,0.00043835,60]
[333804562,1722521306585,-7009.61,0.00043835,60]
[333804563,1722521306634,-7009.61,0.00043835,60]
[333804564,1722521306680,-7009.61,0.00043835,60]
[333804565,1722521306726,-7009.61,0.00043835,60]
[333804566,1722521306775,-500.0,0.00043835,60]
[333804567,1722521306823,-7009.61,0.00043835,60]
[333804568,1722521306868,-7009.61,0.00043835,60]
[333804569,1722521306913,-7009.61,0.00043835,60]
[333804570,1722521306957,-7009.61,0.00043835,60]
[333804571,1722521307000,-7009.61,0.00043835,60]
[333804572,1722521307044,-7009.61,0.00043835,60]
[333804573,1722521307087,-7009.61,0.00043835,60]
[333804574,1722521307133,-7009.61,0.00043835,60]
[333804575,1722521307179,-7009.61,0.00043835,60]
[333804576,1722521307224,-1530.45,0.00043835,60]
[333804577,1722521307269,-7009.757651,0.00043835,60]
[333804578,1722521307315,-500.0,0.00043835,60]
[333804579,1722521307362,-500.0,0.00043835,60]
[333804580,1722521307407,-500.0,0.00043835,60]
[333804581,1722521307453,-9872.35,0.00043835,60]
[333804582,1722521307502,-500.0,0.00043835,60]
[333804583,1722521307548,-500.0,0.00043835,60]
[333804584,1722521307597,-1350.64,0.00043835,60]
[333804585,1722521307645,-500.0,0.00043835,60]
[333804586,1722521307690,-500.0,0.00043835,60]